Cogmind - Beta 13 --- EXPLORER MODE // 2024.05.18 @ 08:39:36 Player: xzyl Result: Destroyed by G-47 Trooper with Particle Gun Performance ------------- Evolutions (2) 1000 Regions Visited (5) 1000 Robots Destroyed (60) 300 Value Destroyed (1790) 1790 Prototype IDs (3) 60 Alien Tech Used (0) 0 Bonus (-124) -124 TOTAL SCORE: 4026 Bonus ------- Follower Combat Kills 42 Friendly Fire -166 Cogmind --------- Core Integrity 0/550 Matter 85/300 Energy 100/100 System Corruption 1% Temperature Cool (93) Movement Core (100) Ox1 Location -8/Materials Parts ------- > --- POWER (2) -------- (None) > --- PROPULSION (2) --- (None) > --- UTILITY (5) ------ Experimental Sensor Array Improved Terrain Scan Processor Launcher Guidance Computer Improved Weapon Shielding > --- WEAPON (3) ------- Field Laser > --- INVENTORY (5) ---- Hacking Suite Field Laser Peak State ------------ > --- POWER ------------ Deuterium Engine Deuterium Engine > --- PROPULSION ------- Aerolev Unit Aerolev Unit > --- UTILITY ---------- Compact Matter Pod Advanced Weight Redist. System Experimental Sensor Array Improved Terrain Scan Processor Launcher Guidance Computer > --- WEAPON ----------- EM Pulse Cannon EM Pulse Cannon Flak Cannon > --- INVENTORY -------- Deuterium Engine Improved Weapon Shielding Hacking Suite Minigun Minigun [Rating: 46] Favorites ----------- Power Deuterium Engine Engine Deuterium Engine Power Core Light Nuclear Core Propulsion Aluminum Leg Leg Aluminum Leg Hover Unit Aerolev Unit Utility Compact Matter Pod Device Experimental Sensor Array Storage Compact Matter Pod Processor Launcher Guidance Computer Protection Core Shielding Weapon Light Assault Rifle Energy Gun Small Laser Energy Cannon EM Pulse Cannon Ballistic Gun Light Assault Rifle Ballistic Cannon Flak Cannon Launcher Grenade Launcher Impact Weapon Heavy Flail Build | -11 -10 -10 -9 -9 -8 ------- Run | Yrd Mat Min Mat Min Mat Slots Evolved 5 | . 1 . 2 . 2 Power 1 | . . . 1 . . Propulsion . | . . . . . . Utility 3 | . 1 . 1 . 1 Weapon 1 | . . . . . 1 Parts Attached 53 | 5 8 1 9 9 21 Power 13 | 1 3 . 4 2 3 Engine 11 | 1 3 . 2 2 3 Core 2 | . . . 2 . . Reactor . | . . . . . . Propulsion 11 | . 3 . 1 1 6 Treads . | . . . . . . Leg 9 | . 3 . 1 1 4 Wheel . | . . . . . . Hover 2 | . . . . . 2 Flight . | . . . . . . Utility 12 | 2 1 1 2 2 4 Device 4 | . 1 . . 1 2 Storage 1 | . . 1 . . . Processor 5 | 1 . . 2 1 1 Hackware . | . . . . . . Protection 2 | 1 . . . . 1 Artifact . | . . . . . . Weapon 17 | 2 1 . 2 4 8 Energy Gun 4 | 1 1 . . . 2 Energy Cannon 3 | . . . . 1 2 Ballistic Gun 7 | 1 . . 2 2 2 Ballistic Cannon 1 | . . . . . 1 Launcher 1 | . . . . 1 . Special Weapon . | . . . . . . Impact Weapon 1 | . . . . . 1 Slashing Weapon . | . . . . . . Piercing Weapon . | . . . . . . Special Melee Weapon . | . . . . . . Unidentified Prototypes 3 | . . . . 2 1 Parts Lost 13 | . . . . 3 10 Power 2 | . . . . . 2 Propulsion 3 | . . . . 1 2 Utility 4 | . . . . 2 2 Weapon 4 | . . . . . 4 Highest Loss Streak 7 | . . . . 3 7 To Critical Strikes . | . . . . . . Average Slot Usage (%) 96 | . 89 100 94 98 95 Engine 15 | . 12 12 13 19 15 Leg 17 | . 17 25 20 19 10 Hover 1 | . . . . . 4 Device 9 | . 8 7 . 4 15 Storage 7 | . . 4 10 10 7 Processor 14 | . 12 12 17 14 15 Protection 7 | . 12 12 10 10 1 Energy Gun 5 | . 12 12 3 . 4 Energy Cannon 2 | . . . . 4 4 Ballistic Gun 10 | . 12 12 15 10 6 Ballistic Cannon 2 | . . . . . 6 Launcher 1 | . . . . 4 . Naked Turns . | . . . . . . Heaviest Build 38 | 7 9 9 22 23 38 Greatest Support 36 | 3 20 20 20 20 36 Greatest Overweight (x) 2 | 2 2 . 1 1 2 Average Overweight (x) . | . . . . . . Largest Inventory Capacity 5 | 5 5 5 5 5 5 Average Capacity 5 | 5 5 5 5 5 5 Most Carried 5 | 5 5 5 5 5 5 Average Carried 4 | 2 3 4 4 3 4 Final Capacity 5 | 5 5 5 5 5 5 Final Carried 5 | 3 4 5 4 5 2 Class Distribution -------------------- 34% | Scavenger-Mutant 34% | Hacker-Mutant 28% | Hacker-Gunner Dominant Class ---------------- Hacker-Mutant | -10/Materials Hacker-Mutant | -10/Mines Scavenger-Mutant | -9/Materials Scavenger-Mutant | -9/Mines Hacker-Gunner | -8/Materials Resources | -11 -10 -10 -9 -9 -8 ----------- Run | Yrd Mat Min Mat Min Mat Matter Collected 1216 | 230 146 11 185 129 515 Remotely . | . . . . . . Salvage Created 1991 | 36 457 . 400 108 990 Parts 134 | 5 30 . 31 11 57 Haulers Intercepted . | . . . . . . Recyclers Shooed 1 | . . . . 1 . Parts Field Recycled . | . . . . . . Retrieved Matter . | . . . . . . Parts Self-Destructed . | . . . . . . Prevented . | . . . . . . Kills | -11 -10 -10 -9 -9 -8 ------- Run | Yrd Mat Min Mat Min Mat Combat Hostiles Destroyed 44 | 1 9 . 8 4 22 Guns 27 | 1 9 . 8 . 9 Cannons 12 | . . . . 2 10 AOE 5 | . . . . 2 3 Classes Destroyed 10 | 1 2 . 2 3 2 Worker 3 | . . . 1 1 1 Builder 2 | . 1 . . . 1 Tunneler 1 | . . . . 1 . Recycler 1 | . . . . . 1 Operator 1 | . . . . . 1 Watcher 7 | . 2 . 1 . 4 Swarmer 9 | . . . . 2 7 Grunt 27 | 1 9 . 5 1 11 Sentry 7 | . . . 3 . 4 Demolisher 2 | . . . . 2 . Best Kill Streak 7 | 1 2 . 3 2 7 Combat Bots Only 6 | 1 2 . 2 2 6 Max Kills in Single Turn 3 | 1 1 . 1 3 2 Gunslinging . | . . . . . . Exploded 2 | . . . . 2 1 Melee . | . . . . . . Uniques/NPCs Destroyed . | . . . . . . Combat | -11 -10 -10 -9 -9 -8 -------- Run | Yrd Mat Min Mat Min Mat Hostile Shots Fired 285 | 5 38 . 47 17 178 Missed 79 | 1 10 . 13 2 53 Damage Taken 2451 | 27 193 . 260 542 1429 Core 717 | 6 28 . 55 73 555 Absorbed by Shields . | . . . . . . Redirected to Shielding 118 | . 5 . 10 15 88 Ignored by Resistances 1227 | 17 125 . 165 203 717 Regen/Repaired (Parts) 28 | . . . . . 28 Core Remaining (%) 83 | 97 . 86 . 68 . Volleys Fired 142 | 4 42 1 29 11 55 Largest 3 | 2 2 2 2 2 3 Hottest 170 | 70 70 60 60 91 170 Shots Fired 318 | 8 81 2 58 24 145 Gun 230 | 8 81 2 58 13 68 Cannon 86 | . . . . 9 77 Launcher 2 | . . . . 2 . Special . | . . . . . . Kinetic 184 | 4 42 1 44 13 80 Thermal 72 | 4 39 1 14 9 5 Explosive 2 | . . . . 2 . Electromagnetic 60 | . . . . . 60 Robot Hit Streak 30 | 5 16 . 19 6 30 Robot Miss Streak 6 | 1 3 . 1 1 6 Penetration Max . | . . . . . . Secondary Targets 3 | . 2 . 1 . . Max Gunslinging Chain 1 | . 1 . 1 . . Shots Hit Robots 229 | 6 59 . 47 15 102 Core Hits 127 | 2 24 . 18 10 73 Critical Kills . | . . . . . . Critical Parts Destroyed . | . . . . . . Critical Strikes 1 | . . . . . 1 Corrupt 1 | . . . . . 1 Melee Attacks . | . . . . . . Impact . | . . . . . . Slashing . | . . . . . . Piercing . | . . . . . . Sneak Attacks . | . . . . . . Combat Hostiles . | . . . . . . Follow-up Attacks . | . . . . . . Damage Inflicted 4153 | 55 578 4 577 511 2428 Guns 1991 | 55 578 . 574 119 665 Cannons 1497 | . . . . 82 1415 Explosions 589 | . . . . 254 335 Melee . | . . . . . . Ramming 76 | . . 4 3 56 13 Kinetic 1813 | 30 239 . 442 119 983 Thermal 966 | 25 339 . 132 82 388 Explosive 254 | . . . . 254 . Electromagnetic 1044 | . . . . . 1044 Impact . | . . . . . . Slashing . | . . . . . . Piercing . | . . . . . . Highest Corruption 3 | . . . . 3 1 Average Corruption 1 | . . . . 3 1 Corruption Purged . | . . . . . . Corruption Blocked . | . . . . . . Effects 20 | . . . . 9 11 Message Errors 2 | . . . . . 2 Matter Fused 5 | . . . . 2 3 Heat Flow Errors 3 | . . . . 1 2 Energy Discharges 2 | . . . . 2 . Data Loss (minor) 2 | . . . . 1 1 Misfires 4 | . . . . 2 2 Alerts 2 | . . . . 1 1 Overload Shots . | . . . . . . Overflow Damage 154 | . . . . 27 127 Projectiles 11 | . . . . . 11 Explosions 143 | . . . . 27 116 Melee . | . . . . . . Knockbacks 15 | . . . . . 15 Impact 2 | . . . . . 2 Kinetic 12 | . . . . . 12 Secondary 1 | . . . . . 1 Self-Inflicted Damage 70 | . . . . 50 20 Shots 3 | . . . . 2 1 Rammed 1 | . . . . . 1 Targets Rammed 17 | . . 3 1 10 3 Kicked 16 | . . 3 1 10 2 Crushed . | . . . . . . Highest Temperature 827 | 84 136 . 235 348 827 Average Temperature 163 | 44 44 . 60 142 213 Received Heat Transfer 1395 | 24 174 . 207 . 990 Effects 60 | . . . . 3 57 Shutdowns 11 | . . . . . 11 Energy Bleed 7 | . . . . 1 6 Interference 13 | . . . . 1 12 Matter Decay 7 | . . . . . 7 Short Circuit 2 | . . . . 1 1 Damage (minor) 6 | . . . . . 6 Damage (major) 11 | . . . . . 11 Damage (core) 3 | . . . . . 3 Siege Activations . | . . . . . . Robots Corrupted . | . . . . . . Combat Hostiles . | . . . . . . Parts Fried 6 | . . . . . 6 Impact Corruptions . | . . . . . . Robots Melted . | . . . . . . Combat Hostiles . | . . . . . . Parts Melted 3 | . 2 . . . 1 Heat Transferred 1817 | 74 834 . 300 148 461 Parts Sabotaged . | . . . . . . Parts Stolen . | . . . . . . Parts Stripped . | . . . . . . Power Chain Reactions 5 | . . . . . 5 Alert | -11 -10 -10 -9 -9 -8 ------- Run | Yrd Mat Min Mat Min Mat Peak Influence 324 | 20 196 27 324 89 235 Initial 89 | . 9 27 . 89 . Average 68 | 4 82 12 150 42 100 Maximum Alert Level 1 | . . . 1 . 1 Low Security (%) 95 | 100 100 100 62 100 97 Level 1 4 | . . . 37 . 2 Level 2 . | . . . . . . Level 3 . | . . . . . . Level 4 . | . . . . . . Level 5 . | . . . . . . High Security . | . . . . . . Max Security . | . . . . . . Squads Dispatched 11 | . 2 . 3 . 6 Investigation 9 | . 2 . 3 . 4 Extermination . | . . . . . . Reinforcement 2 | . . . . . 2 Assault . | . . . . . . Garrison . | . . . . . . Intercept . | . . . . . . Searches Triggered . | . . . . . . Construction Impeded 1 | . . . . . 1 Haulers Reinforced . | . . . . . . Active Scanning Responses . | . . . . . . Cargo Convoy Interrupts . | . . . . . . Stealth | -11 -10 -10 -9 -9 -8 --------- Run | Yrd Mat Min Mat Min Mat Distress Signals 3 | . . . . . 3 Communications Jammed . | . . . . . . Distress Signals . | . . . . . . Times Spotted 74 | 1 12 . 14 5 42 Peak Tracking Total 9 | 1 2 . 4 3 9 Tactical Retreats 3 | . . . 1 . 2 Traps | -11 -10 -10 -9 -9 -8 ------- Run | Yrd Mat Min Mat Min Mat Traps Triggered 1 | . . . . . 1 Indirectly . | . . . . . . Trap Hack Attempts . | . . . . . . Triggered . | . . . . . . Disarmed . | . . . . . . Reprogrammed . | . . . . . . Reused . | . . . . . . Traps Extracted . | . . . . . . Installed . | . . . . . . Triggered . | . . . . . . Machines | -11 -10 -10 -9 -9 -8 ---------- Run | Yrd Mat Min Mat Min Mat Machines Disabled 3 | . . . . . 3 Max in Single Turn 1 | . . . . . 1 Machines Repaired . | . . . . . . Machines Dismantled . | . . . . . . Machines Sabotaged . | . . . . . . Overloaded Fab Kills . | . . . . . . Hacking | -11 -10 -10 -9 -9 -8 --------- Run | Yrd Mat Min Mat Min Mat Machines Accessed 17 | . 4 . 4 . 9 Terminals 12 | . 4 . 3 . 5 Fabricators . | . . . . . . Repair Stations 2 | . . . . . 2 Recycling Units 1 | . . . 1 . . Scanalyzers 2 | . . . . . 2 Garrison Access . | . . . . . . Total Hacks 75 | . 19 . 16 . 40 Successful 59 | . 12 . 11 . 36 Failed 16 | . 7 . 5 . 4 Catastrophic 1 | . 1 . . . . Database Lockouts . | . . . . . . Manual . | . . . . . . Terminals 52 | . 19 . 12 . 21 Fabricators . | . . . . . . Repair Stations 8 | . . . . . 8 Recycling Units 4 | . . . 4 . . Scanalyzers 11 | . . . . . 11 Garrison Access . | . . . . . . Terminal Hacks 38 | . 12 . 9 . 17 Record 14 | . 3 . 5 . 6 Emergency Access Points 3 | . 1 . . . 2 Alert Level 6 | . 3 . 1 . 2 Unreport Threat 2 | . 2 . . . . Locate Traps 4 | . 1 . 1 . 2 Dispatch Records 3 | . 1 . 1 . 1 Patrol Status 1 | . . . . . 1 Transport Status 1 | . . . . . 1 Reinforcement Status 1 | . . . . . 1 Assault Status 2 | . 1 . 1 . . Hauler Manifests 1 | . . . . . 1 Fabricator Hacks . | . . . . . . Repair Station Hacks 8 | . . . . . 8 Scan Component 4 | . . . . . 4 Repair 3 | . . . . . 3 Refit 1 | . . . . . 1 Recycling Unit Hacks 2 | . . . 2 . . Recycle Component 1 | . . . 1 . . Retrieve Matter 1 | . . . 1 . . Scanalyzer 11 | . . . . . 11 Insert Component 5 | . . . . . 5 Analyze 6 | . . . . . 6 Garrison Access Hacks . | . . . . . . Unauthorized Hacks . | . . . . . . Terminals . | . . . . . . Fabricators . | . . . . . . Repair Stations . | . . . . . . Recycling Units . | . . . . . . Scanalyzers . | . . . . . . Garrison Access . | . . . . . . Data Cores Recovered 1 | . . . . . 1 Used 1 | . . . . . 1 Hacking Detections 17 | . 4 . 4 . 9 Full Trace Events 17 | . 4 . 4 . 9 Feedback Events 1 | . . . . . 1 Corruption 1 | . . . . . 1 Feedback Blocked . | . . . . . . Robot Schematics Acquired . | . . . . . . Robots Built . | . . . . . . Authchips . | . . . . . . Time . | . . . . . . Total Robot Build Rating . | . . . . . . Part Schematics Acquired 4 | . . . . . 4 Parts Built . | . . . . . . Authchips . | . . . . . . Time . | . . . . . . Total Part Build Rating . | . . . . . . Parts Repaired 3 | . . . . . 3 Time 96 | . . . . . 96 Parts Recycled 1 | . . . 1 . . Recycled Matter . | . . . . . . Retrieved Matter . | . . . . . . Retrieved Components . | . . . . . . Parts Scanalyzed 5 | . . . . . 5 Part Schematics Acquired 4 | . . . . . 4 Parts Damaged . | . . . . . . Bothacking | -11 -10 -10 -9 -9 -8 ------------ Run | Yrd Mat Min Mat Min Mat Used RIF Installer . | . . . . . . Robots Hacked . | . . . . . . Non-combat . | . . . . . . Combat . | . . . . . . Robot Hacks Applied . | . . . . . . Relay Couplers Released . | . . . . . . Fabnet Peak Effective % . | . . . . . . Robots Rewired . | . . . . . . Allies Hacked . | . . . . . . Hacks Repelled . | . . . . . . Allies | -11 -10 -10 -9 -9 -8 -------- Run | Yrd Mat Min Mat Min Mat Total Allies 3 | . . . . 3 . Largest Group 3 | . . . . 3 2 Highest-Rated Group 40 | . . . . 40 32 Highest-Rated Ally 16 | . . . . 16 16 Total Orders . | . . . . . . Ally Attacks 22 | . . . . 4 18 Total Damage 156 | . . . . 15 141 Kills 2 | . . . . 1 1 Allies Corrupted . | . . . . . . Allies Melted 1 | . . . . . 1 Intel | -11 -10 -10 -9 -9 -8 ------- Run | Yrd Mat Min Mat Min Mat Robot Analysis Total . | . . . . . . Derelict Logs Recovered 1 | . . . . 1 . Drone Launches . | . . . . . . Drone Recoveries . | . . . . . . Exploration | -11 -10 -10 -9 -9 -8 ------------- Run | Yrd Mat Min Mat Min Mat Turns Passed 4489 | 77 363 873 394 1211 1571 Spaces Moved 2846 | 72 172 720 190 764 928 Core 139 | 72 51 . . . 16 Treads . | . . . . . . Legs 2422 | . 121 720 190 764 627 Wheels . | . . . . . . Hover 285 | . . . . . 285 Flight . | . . . . . . Fastest Speed 50 | 50 120 120 120 120 100 Average Speed 137 | 75 128 120 150 149 146 Slowest Speed 200 | 150 150 120 190 190 200 Overloaded Moves . | . . . . . . Propulsion Burnouts . | . . . . . . Robots Hopped . | . . . . . . Cave-ins Triggered 1 | . . . . 1 . Exploration Rate (%) 48 | 5 28 78 21 99 57 Regions Visited 5 Branch Regions 2 Pre-discovered Areas . | . . . . . . Known Exits Taken 5 | 1 1 1 1 1 . Unknown Exits Taken . | . . . . . . Scrap Searched 1 | . . . . 1 . Spaces Dug . | . . . . . . Terrain Destroyed 38 | . . . . 25 13 Melee . | . . . . . . Projectile 1 | . . . . 1 . AOE 37 | . . . . 24 13 Terrain Rammed . | . . . . . . Walls Destroyed . | . . . . . . Machines Disabled . | . . . . . . Actions | -11 -10 -10 -9 -9 -8 --------- Run | Yrd Mat Min Mat Min Mat Total 3147 | 88 241 726 244 810 1038 Wait 9 | . 9 . . . . Move 2841 | 71 171 719 189 763 928 Hop . | . . . . . . Pick Up 38 | 8 5 1 6 8 10 Fast Attach 23 | . 4 1 4 2 12 Attach 25 | 5 3 . 4 6 7 Detach 9 | . 1 . 3 3 2 Swap 5 | . 1 . 1 1 2 Drop 38 | . 5 1 7 6 19 Fire 142 | 4 42 1 29 11 55 Melee . | . . . . . . Ram 1 | . . . . . 1 Kick 16 | . . 3 1 10 2 Crush . | . . . . . . Escape Stasis . | . . . . . . Rewire . | . . . . . . Trap . | . . . . . . Miscellaneous . | . . . . . . Route ------- -11/Scrapyard -10/Materials -10/Mines -9/Materials (discovered 4 exits: *Min x2 / *Sto x2) -9/Mines (discovered 4 exits: *Mat x2 / *Exi / [*Zio]) -8/Materials (discovered 1 exit: *Fac) History --------- Turn | Location | Event 2 | -11/Scrapyard | Met Revision 17 48 | -11/Scrapyard | Identified exit to Materials 48 | -11/Scrapyard | Discovered exit to Materials (range 8) 78 | -11/Scrapyard | Entered Materials 78 | -10/Materials | Evolved 1 slot: Utility x1 300 | -10/Materials | Build established: Hacker-Mutant 342 | -10/Materials | Identified exit to Mines 342 | -10/Materials | Discovered exit to Mines (range 13) 441 | -10/Materials | Entered Mines 558 | -10/Mines | Identified exit to Materials 558 | -10/Mines | Discovered exit to Materials (range 6) 690 | -10/Mines | Found a damaged Exp. Sensor Array with a note attached 692 | -10/Mines | Found Prototype Device 1314 | -10/Mines | Entered Materials 1314 | -9/Materials | Evolved 2 slots: Power x1, Utility x1 1474 | -9/Materials | Identified exit to Storage 1474 | -9/Materials | Discovered exit to Storage (range 4) 1479 | -9/Materials | Discovered exit to Storage (range 11) 1532 | -9/Materials | Identified exit to Mines 1532 | -9/Materials | Discovered exit to Mines (range 17) 1667 | -9/Materials | Discovered exit to Mines (range 6) 1708 | -9/Materials | Entered Mines 1716 | -9/Mines | Build established: Scavenger-Mutant 1725 | -9/Mines | YI-UF0 nonchalantly dropped a Grenade Launcher on the ground 1802 | -9/Mines | Found a hidden stash of uninstalled traps 2110 | -9/Mines | Learned 2 Materials zone layouts 2150 | -9/Mines | Deemed a non-threat by the Exiles lab entrance 2150 | -9/Mines | Identified exit to Exiles 2150 | -9/Mines | Discovered exit to Exiles (range 5) 2182 | -9/Mines | Identified exit to Materials 2182 | -9/Mines | Discovered exit to Materials (range 5) 2248 | -9/Mines | Assembled infested the area 2275 | -9/Mines | Met 8R-AWN 2279 | -9/Mines | A Derelict revealed a hidden shortcut to a safe place 2295 | -9/Mines | Crushed by falling debris 2313 | -9/Mines | Identified Exp. Sensor Array 2326 | -9/Mines | Lost 3 parts (1n2u) 2757 | -9/Mines | Assisted by bots powering up and referring to "LRC-V3" 2887 | -9/Mines | Discovered exit to Materials (range 10) 2919 | -9/Mines | Entered Materials 2919 | -8/Materials | Accompanied by 2 allies 2919 | -8/Materials | Evolved 2 slots: Utility x1, Weapon x1 2920 | -8/Materials | Identified exit to Factory 2931 | -8/Materials | Repaired Lgt. Deuterium Engine 2963 | -8/Materials | Repaired Mni. Grenade Launcher? 3378 | -8/Materials | Build established: Hacker-Gunner 3664 | -8/Materials | Repaired Seismic Detector? 4377 | -8/Materials | Core integrity fell below 50% 4436 | -8/Materials | Lost 7 parts (1p2u4w) 4476 | -8/Materials | Core integrity fell below 20% 4490 | -8/Materials | Destroyed by G-47 Trooper with Particle Gun Last Messages --------------- 04425_ System corrupted: Matter fused (-10). 04443_ K-01 Serf cleans the Atomic Centrifuge. 04456_ System corrupted: IFF burst signal emitted. 04463_ Atomic Centrifuge disabled. 04468_ Acquired Field Laser. 04469_ K-01 Serf collects debris. 04471_ Critical hit (Burn: +37). 04471_ Acquired Field Laser. 04473_ K-01 Serf collects debris. 04475_ Titanium Leg destroyed. 04476_ K-01 Serf collects debris. 04479_ Deuterium Engine destroyed. 04479_ Broken Aluminum Leg destroyed. 04479_ Critical hit (Burn: +37). 04480_ K-01 Serf collects debris. 04483_ Critical hit (Burn: +37). 04483_ Acquired 19 matter. 04486_ K-01 Serf collects debris. Map ----- +----------------------------------------------------+ | ???????????????????????????????????? | | ?????????????????########??????????? | | ??????????######## #??????????? | | ########### # #??????????? | | # + + # * ############ | | # #### # #** ## | | # #??# # #* ## | | # #??# # # ## | | #= #??# # ####+#### | | # #??# ######+## ## | | # ! #### ## | | # + ![ = % % | | #/ #### %* %[ ######## | | ###+#######+#######= # # | | # # #### ### # | | # "S # ! #??# #?# "" + | | # """ # !! #??# ### """ # | | # "" # %#??# + S" # | | # ############# ### # | | # [ # ##"T"## #?######## | | # # #????????# | | # """ # % #????????# | | # = """ + [[[ # """???# % | | # """ #g [[[ g ?# % | | # !%=# = # = ??# | | ##### ### @ a ! # ??????# | | ????#### ###+#????##### | | ???????# g### ##???????? | | ???????# "" g k ######### | | ???????# " "" Yg | | ???????# "" """ ######### | | ???????# ######???????? | | ???????# #????????????? | | ???????### ##########????????????? | | ?????????# k #?##########??????????? | | ??######## #?# ??????????? | | ??# # #?# """"""" ??????????? | | ??# # #?# """"""" ??????????? | | ??# # #?# """"""" ??????????? | | ??# # #?# """"""" ??????????? | | ??# + #?# """"""" ??????????? | | ??# # #?# ??????????? | | ??######## ### ??????????? | | ?????# ## ##+########??????????? | | ######### #????????????? | | # + T #????????????? | | # ## ###??????????? | | # ## ##### # ??????????? | | # ############ # ??????????? | | ???????????????????????????????????? | +----------------------------------------------------+ Best States ------------- Heat Dissipation 39 Energy Generation 23 Energy Capacity 450 Matter Stores 450 Matter Capacity 450 Sight Range 18 Robot Scan Range 20 Terrain Scan Density 110 Additional Mass Support 9 Resistance: KI 35 Resistance: TH 35 Resistance: EX 35 Resistance: EM 35 Resistance: I 35 Resistance: S 35 Resistance: P 35 Core Shielding 20 Weapon Shielding 66 Evasion (%) 55 Targeting Accuracy 5 Launcher Accuracy 20 Offensive Hacking 20 Item Schematics ----------------- Aluminum Leg | -8/Materials | Scanalyzed Deuterium Engine | -8/Materials | Scanalyzed Minigun | -8/Materials | Scanalyzed Hacking Suite | -8/Materials | Scanalyzed Robot Schematics ------------------ None Fabricated ------------ Nothing Alien Tech Used ----------------- None Achievements -------------- Backstab Dynamic Key Everything Is Under Control Maybe Next Time I'll Detach My Launcher Part-time Mechanic Risk Taker Storm Trooper Uninvited Guest Unlikely Earthworm Challenges ------------ None Game ------ Seed ScanHellfireSpear Manual? 0 Play Time 01:13:04 Cumulative 4.8 hours Start 2024.05.17 @ 13:08:01 End 2024.05.18 @ 08:39:36 Sessions 3 Manual Loads 0 Difficulty Explorer Special Mode None Game No. 2 Rogue 0 Adventurer 0 Explorer 2 Win Type - Total 0 Types 0/0/0/0/0/0/0/0/0 Lore% 4 Gallery% 6 Achievement% 8 Wizard Run 0 Options --------- Layout 1 ASCII 0 Keyboard 0 Movement Mouse Keybinds 0 Fullscreen 1 Font 32/Tamsyn Map View 50x35 Zoom Use 0% Tactical HUD 1 Map Filters NONE Filters NONE Steam 1 RUN: d963322b-56d3-4171-b052-f8d42c8a0453